bitfinex/quotes_SOLUSD_20241103
["timestamp","ask_amount","ask_price","bid_price","bid_amount"]
[1730614836702,8.18377465,162.19,162.15,21.5849]
[1730614839017,8.18377465,162.2,162.15,21.5849]
[1730614839606,8.18377465,162.2,162.15,29.76867465]
[1730614841798,8.18377465,162.2,162.15,15.4178]
[1730614844422,8.18377465,162.2,162.15,29.76867465]
[1730614845927,8.18377465,162.21,162.15,29.76867465]
[1730614849147,8.18377465,162.19,162.15,21.5849]
[1730614849311,8.18377465,162.2,162.15,29.76867465]
[1730614850531,8.18377465,162.21,162.16,8.18377465]
[1730614850913,8.18377465,162.2,162.15,23.60157465]
[1730614851524,8.18377465,162.2,162.15,29.76867465]
[1730614851929,8.18377465,162.21,162.16,8.18377465]
[1730614853642,8.18377465,162.21,162.17,21.5822]
[1730614854243,8.18377465,162.2,162.17,21.5822]
[1730614854531,8.18377465,162.23,162.17,29.76597465]
[1730614854739,15.5841,162.24,162.2,8.18377465]
[1730614854943,8.18377465,162.26,162.2,8.18377465]
[1730614855320,8.18377465,162.25,162.2,8.18377465]
[1730614856018,8.18377465,162.25,162.21,21.5769]
[1730614856727,8.18377465,162.26,162.21,21.5769]
[1730614858645,8.18377465,162.25,162.21,21.5769]
[1730614858831,8.18377465,162.25,162.19,8.18377465]
[1730614859024,8.18377465,162.24,162.18,10.50179131]
[1730614859228,8.18377465,162.24,162.19,8.18377465]
[1730614859433,8.18377465,162.23,162.17,29.76597465]
[1730614859640,8.18377465,162.22,162.17,29.76597465]
[1730614859942,8.18377465,162.24,162.19,8.18377465]
[1730614860135,8.18377465,162.25,162.19,8.18377465]
[1730614860336,8.18377465,162.24,162.19,8.18377465]
[1730614860648,22.1263,162.28,162.19,8.18377465]
[1730614860649,8.18377465,162.23,162.19,21.5787]
[1730614860947,8.18377465,162.2,162.18,6.1659]
[1730614861140,8.18377465,162.19,162.16,21.5827]
[1730614861650,8.18377465,162.21,162.16,21.5827]
[1730614862446,23.82817465,162.22,162.16,29.76647465]
[1730614862651,15.6444,162.22,162.18,8.18377465]
[1730614862825,15.6444,162.22,162.17,8.18377465]
[1730614863337,23.82817465,162.22,162.17,8.18377465]
[1730614863654,15.6444,162.22,162.17,8.18377465]
[1730614863951,8.18377465,162.23,162.18,8.18377465]
[1730614864125,8.18377465,162.25,162.2,8.18377465]
[1730614864449,23.82817465,162.26,162.21,8.18377465]
[1730614864946,8.18377465,162.25,162.2,8.18377465]
[1730614865149,8.18377465,162.25,162.19,10.50520073]
[1730614865539,8.18377465,162.24,162.19,10.50520073]
[1730614866128,8.18377465,162.24,162.19,8.18377465]
[1730614866331,8.18377465,162.24,162.2,21.5782]
[1730614866744,8.18377465,162.25,162.2,21.5782]
[1730614867329,8.18377465,162.25,162.2,8.18377465]
[1730614867561,23.82817465,162.26,162.2,8.18377465]
[1730614867729,8.18377465,162.28,162.23,8.18377465]
[1730614867931,8.18377465,162.29,162.23,8.18377465]
[1730614868162,8.18377465,162.29,162.24,8.18377465]
[1730614868331,15.4071,162.3,162.25,8.18377465]
[1730614868530,15.4071,162.3,162.26,8.18377465]
[1730614868757,8.18377465,162.31,162.26,8.18377465]
[1730614869550,8.18377465,162.32,162.28,6.1621]
[1730614870553,8.18377465,162.32,162.28,21.5675]
[1730614871358,8.18377465,162.31,162.26,8.18377465]
[1730614871744,12.76907076,162.31,162.26,12.76907076]
[1730614872047,12.76907076,162.31,162.25,12.76907076]
[1730614872352,12.76907076,162.29,162.24,52.3913]
[1730614872559,12.76907076,162.28,162.24,52.3913]
[1730614872938,12.76907076,162.29,162.24,65.16037076]
[1730614873132,12.76907076,162.3,162.24,65.16037076]
[1730614873337,12.76907076,162.32,162.27,12.76907076]
[1730614874055,28.47259656,162.34,162.28,12.76907076]
[1730614874761,12.76907076,162.33,162.29,21.5663]
[1730614876155,12.76907076,162.3,162.25,21.571]
[1730614876359,12.76907076,162.29,162.25,21.571]
[1730614877254,12.76907076,162.32,162.26,12.76907076]
[1730614877630,12.76907076,162.33,162.27,12.76907076]
[1730614878034,12.76907076,162.32,162.26,12.76907076]
[1730614878760,12.76907076,162.32,162.27,21.5689]
[1730614880643,12.76907076,162.31,162.27,21.5689]
[1730614880850,15.7035258,162.34,162.27,21.5689]
[1730614880851,12.76907076,162.3,162.27,21.5689]
[1730614881856,12.76907076,162.3,162.27,15.4064]
[1730614882236,12.76907076,162.32,162.27,28.17547076]
[1730614883438,12.76907076,162.32,162.27,34.33797076]
[1730614884240,12.76907076,162.32,162.27,21.5689]
[1730614884441,12.76907076,162.31,162.27,21.5689]
[1730614884935,12.76907076,162.3,162.24,12.76907076]
[1730614885133,12.76907076,162.29,162.24,12.76907076]
[1730614885760,12.76907076,162.3,162.24,12.76907076]
[1730614886342,12.76907076,162.31,162.25,28.17737076]
[1730614887759,12.76907076,162.31,162.25,34.34067076]
[1730614890462,12.76907076,162.33,162.28,12.76907076]
[1730614890640,12.76907076,162.33,162.27,12.76907076]
[1730614891158,12.76907076,162.28,162.25,21.5716]
[1730614891658,12.76907076,162.29,162.25,21.5716]
[1730614892158,12.76907076,162.29,162.25,15.4083]
[1730614893556,6.1611,162.31,162.25,15.4083]
[1730614893557,12.76907076,162.3,162.25,12.76907076]
[1730614893766,8.17318536,162.32,162.26,8.17318536]
[1730614894056,8.17318536,162.32,162.27,8.17318536]
[1730614894545,8.17318536,162.32,162.26,8.17318536]
[1730614894867,8.17318536,162.32,162.27,8.17318536]
[1730614895160,8.17318536,162.31,162.26,8.17318536]
[1730614895680,12.76968218,162.31,162.26,12.76968218]
[1730614896760,12.76968218,162.31,162.27,21.5689]
[1730614901366,12.76968218,162.32,162.27,34.33858218]
[1730614901551,12.76968218,162.33,162.27,34.33858218]
[1730614901747,12.76968218,162.31,162.27,21.5689]
[1730614902161,12.76968218,162.32,162.27,21.5689]
[1730614903190,12.76968218,162.32,162.27,34.33858218]
[1730614906568,12.76968218,162.32,162.27,21.5689]
[1730614907973,12.76968218,162.32,162.27,12.76968218]
[1730614910173,12.76968218,162.32,162.28,21.5675]
[1730614910367,12.76968218,162.33,162.28,21.5675]
[1730614910568,12.76968218,162.32,162.28,21.5675]
[1730614910774,28.47320798,162.34,162.28,34.33718218]
[1730614910974,0.2964258,162.34,162.31,12.76968218]
[1730614911158,0.2964258,162.34,162.3,12.76968218]
[1730614911359,13.06610798,162.34,162.29,12.76968218]
[1730614911955,13.06610798,162.34,162.28,65.14808218]
[1730614912973,0.2964258,162.34,162.3,12.76968218]
[1730614913552,0.2964258,162.34,162.31,12.76968218]
[1730614913768,0.2964258,162.34,162.28,46.2163]
[1730614913769,0.2964258,162.34,162.33,12.76968218]
[1730614915258,0.2964258,162.34,162.33,18.92988218]
[1730614915659,0.2964258,162.34,162.33,14.32502239]
[1730614918777,0.2964258,162.34,162.32,8.16482239]
[1730614919677,0.2964258,162.34,162.33,8.16482239]
[1730614920177,0.2964258,162.34,162.33,14.32502239]
[1730614920766,0.2964258,162.34,162.33,6.1602]
[1730614921079,0.2964258,162.34,162.32,15.4012]
[1730614921280,0.2964258,162.34,162.32,21.5618]
[1730614922788,0.2964258,162.34,162.32,29.72662239]
[1730614925378,0.2964258,162.34,162.33,8.16482239]
[1730614925975,0.2964258,162.34,162.33,34.32502239]
[1730614926563,0.2964258,162.34,162.33,34.42502239]
[1730614926757,0.2964258,162.34,162.33,34.32502239]
[1730614927963,0.2964258,162.34,162.33,34.42502239]
[1730614929358,0.2964258,162.34,162.33,34.32502239]
[1730614935778,0.2964258,162.34,162.33,26.1602]
[1730614936788,0.2964258,162.34,162.33,6.1602]
[1730614938571,0.2964258,162.34,162.33,14.32502239]
[1730614940711,0.2964258,162.34,162.33,6.1602]
[1730614941189,0.2964258,162.34,162.32,15.4012]
[1730614941374,0.2964258,162.34,162.32,21.5618]
[1730614941573,8.46124819,162.34,162.32,21.5618]
[1730614941781,8.46124819,162.34,162.32,15.4012]
[1730614942289,0.2964258,162.34,162.3,8.16482239]
[1730614942474,0.2964258,162.34,162.31,8.16482239]
[1730614943371,0.2964258,162.34,162.32,8.16482239]
[1730614944195,0.2964258,162.34,162.33,8.16482239]
[1730614944397,0.2964258,162.34,162.33,14.32502239]
[1730614945367,0.2964258,162.34,162.33,34.32502239]
[1730614949499,0.2964258,162.34,162.33,34.42502239]
[1730614949792,0.2964258,162.34,162.33,34.52502239]
[1730614950989,0.2964258,162.34,162.33,34.32502239]
[1730614951179,0.2964258,162.34,162.33,34.42502239]
[1730614951377,0.2964258,162.34,162.33,34.52502239]
[1730614952307,0.2964258,162.34,162.33,34.42502239]
[1730614952498,0.2964258,162.34,162.33,34.52502239]
[1730614952685,0.2964258,162.34,162.33,34.42502239]
[1730614952882,0.2964258,162.34,162.33,34.52502239]
[1730614954298,0.2964258,162.34,162.33,36.83339478]
[1730614955080,0.2964258,162.34,162.33,34.52502239]
[1730614955284,0.2964258,162.34,162.33,36.83407036]
[1730614956795,0.2964258,162.34,162.33,36.73407036]
[1730614957190,0.2964258,162.34,162.33,36.83407036]
[1730614958707,0.2964258,162.42,162.36,0.1]
[1730614959008,0.2964258,162.42,162.39,8.16482239]
[1730614959892,0.2964258,162.42,162.4,21.5516]
[1730614965194,8.16482239,162.41,162.36,8.16482239]
[1730614965392,8.16482239,162.41,162.37,15.3967]
[1730614967419,8.46124819,162.42,162.37,23.56152239]
[1730614967801,8.46124819,162.42,162.37,15.3967]
[1730614968606,8.46124819,162.42,162.37,21.5554]
[1730614972519,8.16482239,162.41,162.37,21.5554]
[1730614972808,8.46124819,162.42,162.37,29.72022239]
[1730614976132,8.46124819,162.42,162.37,21.5554]
[1730614977415,8.46124819,162.42,162.37,23.56152239]
[1730614978504,8.46124819,162.42,162.37,29.72022239]
[1730614981018,8.16482239,162.41,162.37,21.5554]
[1730614981413,14.61814819,162.42,162.37,21.5554]
[1730614983727,14.61814819,162.42,162.37,23.56152239]
[1730614984717,8.46124819,162.42,162.37,29.72022239]
[1730614984923,0.2964258,162.42,162.38,8.16482239]
[1730614985425,0.2964258,162.42,162.37,29.72022239]
[1730614985735,8.46124819,162.42,162.37,29.72022239]
[1730614990829,8.16482239,162.41,162.37,15.3967]
[1730614991006,8.16482239,162.4,162.37,15.3967]
[1730614995513,8.16482239,162.39,162.34,20.0]
[1730614995713,8.16482239,162.37,162.34,21.5594]
[1730614996028,8.16482239,162.35,162.29,8.16482239]
[1730614996232,8.16482239,162.34,162.3,2.31614394]
[1730614996530,8.16482239,162.35,162.31,2.31617766]
[1730614996728,8.16482239,162.35,162.3,2.31617766]
[1730614996946,8.16482239,162.34,162.3,2.31617766]
[1730614997111,8.16482239,162.34,162.31,21.5636]
[1730614997518,8.16482239,162.35,162.31,21.5636]
[1730614998522,8.16482239,162.35,162.31,15.4026]
[1730614999740,8.16482239,162.32,162.29,6.1617]
[1730615000422,8.16482239,162.32,162.28,15.4052]
[1730615000621,8.16482239,162.32,162.28,21.5673]
[1730615001216,8.16482239,162.33,162.28,21.5673]
[1730615001532,8.16482239,162.34,162.29,8.16482239]
[1730615001733,6.1589,162.37,162.29,8.16482239]
[1730615001734,8.16482239,162.35,162.29,8.16482239]
[1730615003527,8.16482239,162.36,162.31,8.16482239]
[1730615003728,8.16482239,162.37,162.32,21.5622]
[1730615004407,23.88482239,162.38,162.32,29.72702239]
[1730615005420,8.16482239,162.39,162.33,8.16482239]
[1730615005619,8.16482239,162.39,162.34,21.5596]
[1730615006737,8.16482239,162.39,162.35,2.31284616]
[1730615007713,8.16482239,162.39,162.36,6.1591]
[1730615010725,8.16482239,162.38,162.36,6.1591]
[1730615011046,8.16482239,162.37,162.35,2.31320909]
[1730615011336,8.16482239,162.36,162.34,21.5595]
[1730615012115,8.16482239,162.37,162.32,8.16482239]
[1730615012336,8.16482239,162.37,162.33,2.31312872]
[1730615012629,8.16482239,162.37,162.32,8.16482239]
[1730615012630,8.16482239,162.37,162.34,2.31312872]
[1730615012843,8.16482239,162.37,162.33,2.31312872]
[1730615013017,8.16482239,162.37,162.32,2.31320107]
[1730615013216,8.16482239,162.36,162.33,23.87410107]
[1730615013516,8.16482239,162.36,162.33,21.5609]
[1730615014536,8.16482239,162.36,162.33,15.4007]
[1730615015126,8.16482239,162.36,162.34,2.31260618]
[1730615015535,8.16482239,162.37,162.34,2.31260618]
[1730615016024,8.16482239,162.37,162.34,8.47220618]
[1730615019619,8.16482239,162.38,162.34,21.5593]
[1730615020735,8.16482239,162.38,162.34,15.3997]
[1730615020929,8.16482239,162.37,162.34,15.3997]
[1730615022340,8.16482239,162.38,162.34,15.3997]
[1730615022541,8.16482239,162.37,162.34,15.3997]
[1730615024818,8.16482239,162.37,162.32,8.16482239]
[1730615025020,8.16482239,162.37,162.33,2.31259879]
[1730615025224,8.16482239,162.37,162.34,2.31259879]
[1730615025429,8.16482239,162.37,162.33,2.31259879]
[1730615025632,8.16482239,162.37,162.34,2.31259879]
[1730615025930,8.16482239,162.37,162.33,2.31259879]
[1730615026130,8.16482239,162.37,162.34,8.47219879]
[1730615028421,8.16482239,162.35,162.34,2.31259879]
[1730615028619,8.16482239,162.35,162.33,21.56]
[1730615029549,8.16482239,162.35,162.33,15.3999]
[1730615030326,8.16482239,162.36,162.33,15.3999]
[1730615031342,8.16482239,162.35,162.33,15.3999]
[1730615031549,8.16482239,162.34,162.31,6.161]
[1730615031850,8.16482239,162.33,162.31,8.47403072]
[1730615032248,8.16482239,162.33,162.31,6.161]
[1730615032549,8.16482239,162.33,162.31,23.87700074]
[1730615032748,8.16482239,162.33,162.31,15.4026]
[1730615033748,8.16482239,162.33,162.3,6.1614]
[1730615034050,8.16482239,162.33,162.3,8.47435918]
[1730615036055,8.16482239,162.33,162.3,2.31315435]
[1730615037053,8.16482239,162.31,162.3,8.47445435]
[1730615037936,8.16482239,162.32,162.3,8.47445435]
[1730615038742,8.16482239,162.33,162.3,8.47445435]
[1730615040952,8.16482239,162.32,162.3,8.47445435]
[1730615041254,8.16482239,162.31,162.3,8.47445435]
[1730615041752,8.16482239,162.31,162.28,21.5667]
[1730615041955,8.16482239,162.31,162.29,6.01511833]
[1730615042160,8.16482239,162.31,162.28,21.5667]
[1730615042337,8.16482239,162.32,162.29,2.31327029]
[1730615042541,8.16482239,162.32,162.3,2.31327029]
[1730615042752,8.16482239,162.32,162.3,6.1614]
[1730615042952,8.16482239,162.32,162.3,8.47467029]
[1730615043137,8.16482239,162.32,162.3,6.1614]
[1730615043345,8.16482239,162.32,162.3,8.47467029]
[1730615043536,8.16482239,162.32,162.3,6.1614]
[1730615043753,8.16482239,162.32,162.3,8.47467029]
[1730615043945,8.16482239,162.32,162.3,6.1614]
[1730615044159,8.16482239,162.32,162.3,8.47467029]
[1730615044349,8.16482239,162.32,162.3,6.1614]
[1730615044660,8.16482239,162.33,162.3,23.87817029]
[1730615044844,8.16482239,162.33,162.3,21.5649]
[1730615045542,8.16482239,162.33,162.3,15.4035]
[1730615046553,8.16482239,162.33,162.31,8.47308367]
[1730615046951,8.16482239,162.32,162.31,8.47308367]
[1730615047145,8.16482239,162.32,162.3,15.4035]
[1730615047348,8.16482239,162.31,162.3,21.5648]
[1730615047543,8.16482239,162.31,162.3,23.8769617]
[1730615048954,8.16482239,162.31,162.3,23.87630536]
[1730615049457,8.16482239,162.31,162.26,11.86359851]
[1730615049458,8.16482239,162.31,162.28,6.1619]
[1730615049660,8.16482239,162.29,162.28,6.1619]
[1730615049866,8.16482239,162.3,162.28,8.47342309]
[1730615050066,8.16482239,162.29,162.28,6.1619]
[1730615050265,8.16482239,162.29,162.28,17.71692309]
[1730615051450,8.16482239,162.29,162.28,2.31152309]
[1730615051652,8.16482239,162.29,162.27,2.31152309]
[1730615052470,8.16482239,162.29,162.26,15.4073]
[1730615052669,8.16482239,162.29,162.27,2.31089014]
[1730615052866,8.16482239,162.29,162.27,2.31062733]
[1730615054177,8.16482239,162.29,162.27,8.47292733]
[1730615055164,8.16482239,162.3,162.27,8.47292733]
[1730615055572,8.16482239,162.31,162.27,8.47292733]
[1730615055775,8.16482239,162.31,162.27,23.87932733]
[1730615055961,8.16482239,162.31,162.28,2.31062733]
[1730615056159,8.16482239,162.31,162.28,2.31027228]
[1730615056965,8.16482239,162.31,162.28,8.47217228]
[1730615059469,8.16482239,162.31,162.27,15.4064]
[1730615059776,8.16482239,162.31,162.28,2.31042749]
[1730615060875,8.16482239,162.31,162.28,8.47242749]
[1730615061082,8.16482239,162.29,162.28,8.47242749]
[1730615062664,8.16482239,162.3,162.28,8.47242749]
[1730615062865,8.16482239,162.29,162.28,8.47242749]
[1730615064090,8.16482239,162.29,162.28,6.162]
[1730615064463,8.16482239,162.29,162.28,8.47240059]
[1730615064779,8.16482239,162.29,162.28,6.162]
[1730615066684,8.16482239,162.29,162.27,15.4064]
[1730615068071,0.2,162.37,162.24,21.5723]
[1730615068072,8.16482239,162.28,162.24,21.5723]
[1730615068381,8.16482239,162.26,162.24,21.5723]
[1730615068578,15.9606,162.31,162.24,21.5723]
[1730615068579,8.16482239,162.27,162.24,21.5723]
[1730615068990,8.16482239,162.26,162.24,21.5723]
[1730615069369,15.9606,162.31,162.24,21.5723]
[1730615069370,8.16482239,162.25,162.24,15.4087]
[1730615069973,8.16482239,162.26,162.24,15.4087]
[1730615072403,8.16482239,162.25,162.24,15.4087]
[1730615073282,8.16482239,162.25,162.24,17.72214192]
[1730615073683,8.16482239,162.25,162.24,17.72073807]
[1730615073889,8.16482239,162.26,162.24,17.72073807]
[1730615074098,8.16482239,162.26,162.24,21.5724]
[1730615074596,8.16482239,162.27,162.24,21.5724]
[1730615074795,8.16482239,162.26,162.24,21.5724]
[1730615075500,8.16482239,162.26,162.24,15.4087]
[1730615079177,8.16482239,162.25,162.24,15.4087]
[1730615082277,8.16482239,162.26,162.24,15.4087]
[1730615085484,8.16482239,162.26,162.22,0.81771253]
[1730615085677,8.16482239,162.24,162.22,6.98211253]
[1730615090119,8.16482239,162.23,162.22,6.98211253]
[1730615091206,8.16482239,162.23,162.21,15.4116]
[1730615091207,8.16482239,162.23,162.21,21.5764]
[1730615091404,8.16482239,162.22,162.21,21.5764]
[1730615092521,8.16482239,162.22,162.16,11.8554691]
[1730615092522,8.16482239,162.22,162.17,41.5822]
[1730615092817,8.16482239,162.21,162.17,21.5822]
[1730615092998,8.16482239,162.22,162.17,21.5822]
[1730615096503,8.16482239,162.21,162.17,15.4159]
[1730615100221,8.16482239,162.22,162.17,15.4159]
[1730615100525,8.16482239,162.25,162.19,8.16482239]
[1730615101098,8.16482239,162.24,162.19,8.16482239]
[1730615101916,8.16482239,162.24,162.2,21.5782]
[1730615104520,8.16482239,162.25,162.2,21.5782]
[1730615106323,8.16482239,162.25,162.21,2.3082525]
[1730615106814,8.16482239,162.25,162.2,21.5782]
[1730615107318,8.16482239,162.27,162.22,8.16482239]
[1730615107503,8.16482239,162.27,162.21,10.47437185]
[1730615108128,8.16482239,162.27,162.21,14.17005941]
[1730615108424,8.16482239,162.27,162.22,23.88504946]
[1730615108603,8.16482239,162.27,162.23,2.30954946]
[1730615109103,8.16482239,162.27,162.23,2.31077216]
[1730615109301,8.16482239,162.27,162.24,6.1637]
[1730615109502,8.16482239,162.27,162.24,8.47447216]
[1730615109703,8.16482239,162.27,162.24,6.1637]
[1730615109898,8.16482239,162.27,162.24,8.47447216]
[1730615110104,8.16482239,162.28,162.24,21.5729]
[1730615110399,24.57032239,162.3,162.25,8.16482239]
[1730615110603,8.16482239,162.31,162.25,10.47714812]
[1730615111015,8.16482239,162.3,162.25,10.47714812]
[1730615111399,8.16482239,162.3,162.26,21.5702]
[1730615112016,6.1608,162.32,162.26,15.4073]
[1730615112221,8.16482239,162.27,162.23,21.574]
[1730615112416,8.16482239,162.24,162.23,15.41]
[1730615112726,8.16482239,162.24,162.22,6.1644]
[1730615114115,16.4055,162.28,162.22,6.1644]
[1730615114116,8.16482239,162.25,162.22,6.1644]
[1730615114427,8.16482239,162.26,162.23,2.31261879]
[1730615114614,8.16482239,162.27,162.23,2.31257528]
[1730615115306,8.16482239,162.27,162.23,8.47637528]
[1730615115506,8.16482239,162.26,162.23,8.47637528]
[1730615117735,8.16482239,162.25,162.23,23.88657528]
[1730615117908,8.16482239,162.25,162.23,21.574]
[1730615118921,8.16482239,162.26,162.23,15.4102]
[1730615119843,8.16482239,162.27,162.21,8.16482239]
[1730615120124,8.16482239,162.27,162.22,2.31293345]
[1730615120329,8.16482239,162.27,162.23,2.31293345]
[1730615120630,8.16482239,162.27,162.22,2.31293345]
[1730615120845,8.16482239,162.27,162.23,2.31293345]
[1730615121024,8.16482239,162.27,162.23,6.164]
[1730615121225,8.16482239,162.27,162.23,8.47693345]
[1730615121528,8.16482239,162.27,162.23,6.164]
[1730615121906,30.73252239,162.28,162.23,6.164]
[1730615122333,30.73252239,162.28,162.24,2.31306016]
[1730615123415,8.16482239,162.29,162.24,23.88566016]
[1730615123616,8.16482239,162.29,162.24,21.5726]
[1730615124835,8.16482239,162.29,162.24,23.57402239]
[1730615126425,8.16482239,162.3,162.25,8.16482239]
[1730615126621,8.16482239,162.3,162.26,2.31295926]
[1730615126823,8.16482239,162.29,162.26,2.31295926]
[1730615127028,8.16482239,162.29,162.25,21.5716]
[1730615128634,8.16482239,162.29,162.26,2.31248396]
[1730615128841,8.16482239,162.29,162.26,8.47528396]
[1730615129140,8.16482239,162.3,162.26,8.47528396]
[1730615129341,8.16482239,162.3,162.26,6.1628]
[1730615129919,8.16482239,162.3,162.25,21.5716]
[1730615130121,8.16482239,162.3,162.26,2.31223672]
[1730615130936,8.16482239,162.29,162.25,21.5716]
[1730615131129,8.16482239,162.28,162.25,21.5716]
[1730615131727,8.16482239,162.28,162.25,15.4083]
[1730615132529,8.16482239,162.27,162.25,15.4083]
[1730615133740,8.16482239,162.28,162.25,15.4083]
[1730615135941,8.16482239,162.29,162.25,15.4083]
[1730615137439,8.16482239,162.29,162.25,21.5716]
[1730615139148,8.16482239,162.3,162.25,21.5716]
[1730615139955,14.32582239,162.31,162.25,29.73642239]
[1730615140136,14.32582239,162.31,162.26,2.31154066]
[1730615140333,23.55982239,162.32,162.26,10.47636305]
[1730615140547,23.55982239,162.32,162.27,10.47636305]
[1730615140856,23.55982239,162.32,162.26,10.47636305]
[1730615141061,23.55982239,162.32,162.27,2.31139177]
[1730615141230,23.55982239,162.32,162.28,6.1621]
[1730615142860,23.55982239,162.32,162.27,21.568]
[1730615143855,8.16482239,162.31,162.27,21.568]
[1730615144151,8.16482239,162.31,162.27,15.4055]
[1730615145445,8.16482239,162.31,162.27,21.568]
[1730615145840,23.55982239,162.32,162.27,21.568]
[1730615146049,8.16482239,162.34,162.28,8.16482239]
[1730615146247,8.16482239,162.34,162.28,10.47648344]
[1730615146959,8.16482239,162.35,162.29,8.16482239]
[1730615147258,8.16482239,162.34,162.3,6.1614]
[1730615147634,8.16482239,162.34,162.3,21.5649]
[1730615150644,8.16482239,162.33,162.3,21.5649]
[1730615152251,8.16482239,162.33,162.3,15.4035]
[1730615160539,8.16482239,162.31,162.28,6.1621]
[1730615161766,8.16482239,162.31,162.27,15.406]
[1730615162171,8.16482239,162.32,162.27,15.406]
[1730615163476,8.16482239,162.32,162.27,21.5685]
[1730615164560,8.16482239,162.34,162.28,8.16482239]
[1730615165849,14.32482239,162.34,162.29,6.1618]
[1730615174879,8.16482239,162.34,162.29,14.32662239]
[1730615175183,8.16482239,162.35,162.29,29.73112239]
[1730615175860,8.16482239,162.35,162.3,8.16482239]
[1730615176175,14.32442239,162.35,162.3,14.32592239]
[1730615176368,14.32442239,162.35,162.3,6.1611]
[1730615177572,8.16482239,162.37,162.32,8.16482239]
[1730615178076,8.16482239,162.39,162.33,8.16482239]
[1730615178677,6.1576,162.4,162.33,8.16482239]
[1730615178678,8.16482239,162.38,162.33,8.16482239]
[1730615178882,8.16482239,162.37,162.32,10.47748336]
[1730615179060,8.16482239,162.37,162.33,21.5609]
[1730615179261,8.16482239,162.35,162.33,15.4007]
[1730615179459,8.16482239,162.34,162.3,21.5648]
[1730615179684,8.16482239,162.33,162.3,21.5648]
[1730615180082,16.2285,162.36,162.3,21.5648]
[1730615180083,8.16482239,162.34,162.3,21.5648]
[1730615180464,8.16482239,162.32,162.28,9.86288642]
[1730615180663,8.16482239,162.32,162.29,2.31326986]
[1730615180982,8.16482239,162.33,162.28,29.73232239]
[1730615181182,8.16482239,162.33,162.29,2.31337033]
[1730615181484,14.32472239,162.34,162.29,2.31337033]
[1730615181671,8.16482239,162.34,162.29,2.31337033]
[1730615181981,8.16482239,162.34,162.28,33.43482423]
[1730615182183,8.16482239,162.34,162.29,2.31383374]
[1730615182376,8.16482239,162.34,162.28,33.43482423]
[1730615182579,8.16482239,162.34,162.29,2.31405835]
[1730615182880,8.16482239,162.34,162.28,33.43518388]
[1730615183089,8.16482239,162.34,162.3,6.1614]
[1730615183271,8.16482239,162.34,162.3,8.47569476]
[1730615183473,8.16482239,162.34,162.3,6.1614]
[1730615183676,8.16482239,162.34,162.3,8.47569476]
[1730615183883,8.16482239,162.34,162.3,6.1614]
[1730615184064,8.16482239,162.34,162.3,8.47569476]
[1730615184266,8.16482239,162.34,162.28,11.86768388]
[1730615184477,8.16482239,162.33,162.29,23.88082487]
[1730615184679,8.16482239,162.33,162.3,2.31452487]
[1730615184876,8.16482239,162.33,162.29,21.5663]
[1730615185384,8.16482239,162.33,162.3,8.47597333]
[1730615185570,8.16482239,162.33,162.3,6.1611]
[1730615186379,8.16482239,162.33,162.29,21.5663]
[1730615186768,8.16482239,162.33,162.3,2.3148762]
[1730615187067,8.16482239,162.33,162.29,21.5663]
[1730615187270,8.16482239,162.33,162.3,2.31483573]
[1730615187468,8.16482239,162.33,162.29,21.5663]
[1730615187668,8.16482239,162.33,162.3,8.47590186]
[1730615187869,8.16482239,162.33,162.3,6.1611]
[1730615189184,8.16482239,162.34,162.29,15.4045]
[1730615189485,8.16482239,162.34,162.3,2.31474539]
[1730615189666,8.16482239,162.34,162.29,21.5663]
[1730615189870,8.16482239,162.34,162.3,2.31474539]
[1730615190068,8.16482239,162.34,162.29,21.5663]
[1730615190268,8.16482239,162.34,162.3,8.47583244]
[1730615190563,8.16482239,162.34,162.3,6.1611]
[1730615191764,8.16482239,162.34,162.31,2.31473411]
[1730615191967,8.16482239,162.33,162.3,6.1611]
[1730615192286,8.16482239,162.33,162.31,2.31473426]
[1730615192587,8.16482239,162.33,162.29,15.4045]
[1730615192786,8.16482239,162.33,162.3,2.31471695]
[1730615192964,8.16482239,162.33,162.29,21.5663]
[1730615193166,8.16482239,162.34,162.3,2.31471691]
[1730615193387,8.16482239,162.34,162.31,2.31471691]
[1730615193586,8.16482239,162.34,162.29,25.27026088]
[1730615193787,8.16482239,162.34,162.3,2.31464878]
[1730615193975,8.16482239,162.34,162.31,2.31464878]
[1730615194174,8.16482239,162.34,162.3,6.1611]
[1730615194363,8.16482239,162.34,162.31,2.31455127]
[1730615194567,8.16482239,162.34,162.3,21.5646]
[1730615194767,8.16482239,162.34,162.31,2.31455213]
[1730615194985,8.16482239,162.34,162.3,21.5646]
[1730615195282,8.16482239,162.34,162.31,2.31455135]
[1730615195486,8.16482239,162.34,162.3,21.5646]
[1730615195788,8.16482239,162.34,162.31,2.31449858]
[1730615196086,8.16482239,162.34,162.3,21.5646]
[1730615196274,8.16482239,162.34,162.31,2.3144082]